bitfinex-derivatives/quotes_BTCF0:USTF0_20250905
["timestamp","ask_amount","ask_price","bid_price","bid_amount"]
[1757035174543,0.03050437,110780.0,110770.0,1.89072876]
[1757035175042,0.004,110780.0,110770.0,1.89072876]
[1757035175247,0.004,110780.0,110770.0,2.14072876]
[1757035179952,0.003,110780.0,110770.0,2.14072876]
[1757035180254,0.002,110780.0,110770.0,2.14072876]
[1757035181649,0.002,110780.0,110770.0,1.06384876]
[1757035181851,0.01496,110780.0,110770.0,1.89060876]
[1757035182352,0.002,110780.0,110770.0,1.89060876]
[1757035182552,0.01496,110780.0,110770.0,1.80033786]
[1757035183248,0.01496,110780.0,110770.0,1.56756]
[1757035183540,0.01496,110780.0,110770.0,1.80033786]
[1757035184252,0.01496,110780.0,110770.0,1.89060876]
[1757035186346,0.01496,110780.0,110770.0,1.06384876]
[1757035186546,0.01496,110780.0,110770.0,1.89056876]
[1757035187553,0.002,110780.0,110770.0,1.89056876]
[1757035189852,0.002,110780.0,110770.0,1.6577909]
[1757035190060,0.01522,110780.0,110770.0,1.89056876]
[1757035190264,0.01522,110780.0,110770.0,1.06384876]
[1757035190557,0.01522,110780.0,110770.0,1.89052876]
[1757035190755,0.01522,110780.0,110770.0,1.06384876]
[1757035190951,0.01522,110780.0,110770.0,1.89052876]
[1757035192353,0.01522,110780.0,110770.0,1.6577509]
[1757035192858,0.01522,110780.0,110770.0,1.89052876]
[1757035194265,0.01522,110780.0,110770.0,1.06384876]
[1757035194453,0.28638,110780.0,110770.0,0.7408]
[1757035194665,0.31165104,110780.0,110770.0,1.20668]
[1757035195168,0.5444289,110780.0,110770.0,0.38]
[1757035195359,0.9052289,110780.0,110770.0,1.20668]
[1757035196562,0.9052289,110780.0,110770.0,0.38]
[1757035196755,0.9052289,110780.0,110770.0,1.20668]
[1757035196956,0.9052289,110780.0,110770.0,0.38]
[1757035197459,0.9052289,110780.0,110770.0,0.11]
[1757035199165,0.88919146,110780.0,110770.0,0.11]
[1757035200356,0.91402089,110780.0,110770.0,0.11]
[1757035200657,0.03438,110750.0,110740.0,0.45585301]
[1757035200862,0.03438,110750.0,110740.0,1.61257301]
[1757035201263,0.03438,110750.0,110740.0,1.84535087]
[1757035201464,0.26694218,110750.0,110740.0,1.84513519]
[1757035201763,0.26694218,110750.0,110740.0,1.01841519]
[1757035202061,0.26694218,110750.0,110740.0,1.84513519]
[1757035202256,0.01332,110760.0,110740.0,1.25097737]
[1757035202458,0.26704218,110760.0,110750.0,1.08168218]
[1757035202659,0.26694218,110760.0,110750.0,1.39168218]
[1757035202963,0.26694218,110760.0,110750.0,0.56496218]
[1757035203157,0.26694218,110760.0,110750.0,1.39168218]
[1757035203359,0.26694218,110760.0,110750.0,1.39172218]
[1757035204165,0.26694218,110760.0,110750.0,1.39372218]
[1757035204558,0.26694218,110760.0,110750.0,0.3344]
[1757035204768,1.34286654,110760.0,110750.0,0.122]
[1757035204963,1.34286654,110760.0,110750.0,0.002]
[1757035205360,1.34286654,110760.0,110750.0,0.003]
[1757035205861,0.03438,110730.0,110720.0,0.38984303]
[1757035206067,0.26694218,110730.0,110720.0,0.73974303]
[1757035207066,0.26594218,110730.0,110720.0,0.73974303]
[1757035207770,0.26594218,110730.0,110720.0,0.81353193]
[1757035208166,0.26594218,110730.0,110720.0,1.04609411]
[1757035209067,0.26594218,110730.0,110720.0,0.81353193]
[1757035209269,0.03338,110730.0,110720.0,1.04609411]
[1757035209460,0.0001,110740.0,110720.0,1.98676619]
[1757035209667,0.0001,110740.0,110730.0,0.61607218]
[1757035209962,0.37412,110750.0,110730.0,1.05637558]
[1757035210166,0.0001,110750.0,110740.0,1.68347436]
[1757035210362,0.60668218,110760.0,110740.0,2.06347436]
[1757035210562,0.23256218,110750.0,110740.0,1.83091218]
[1757035210761,0.24578218,110750.0,110740.0,1.82291218]
[1757035210961,0.24578218,110750.0,110740.0,1.59035]
[1757035211169,0.24578218,110750.0,110740.0,1.82291218]
[1757035211466,0.60668218,110760.0,110740.0,2.31347436]
[1757035211671,0.62784218,110760.0,110750.0,0.25527218]
[1757035211870,0.62774218,110760.0,110750.0,0.63527218]
[1757035212767,0.26694218,110760.0,110750.0,0.63527218]
[1757035213167,0.24578218,110760.0,110750.0,0.63527218]
[1757035213367,0.26694218,110760.0,110750.0,0.40271]
[1757035213671,0.03438,110760.0,110750.0,0.40271]
[1757035213973,0.03538,110760.0,110750.0,0.40271]
[1757035214371,0.03838,110760.0,110750.0,0.40271]
[1757035214769,0.004,110760.0,110750.0,1.39448465]
[1757035214973,0.001,110760.0,110750.0,1.39448465]
[1757035215668,0.0001,110770.0,110760.0,0.1172891]
[1757035215868,0.0001,110780.0,110770.0,0.1112809]
[1757035216067,0.37412,110790.0,110770.0,0.67169745]
[1757035216268,0.39742,110790.0,110780.0,0.84841]
[1757035216469,0.39732,110790.0,110780.0,1.15841]
[1757035218477,0.40132,110790.0,110780.0,1.15841]
[1757035219275,0.40032,110790.0,110780.0,1.15841]
[1757035219478,0.40232,110790.0,110780.0,1.15841]
[1757035220175,0.04152,110790.0,110780.0,1.15841]
[1757035220570,0.40232,110790.0,110780.0,1.15841]
[1757035221087,0.04152,110790.0,110780.0,1.15841]
[1757035221267,0.04152,110790.0,110780.0,1.51921]
[1757035221473,0.01822,110790.0,110780.0,1.80989745]
[1757035223781,0.005,110790.0,110780.0,1.88211264]
[1757035224174,0.005,110790.0,110780.0,1.80989745]
[1757035225491,0.0187,110790.0,110780.0,1.80989745]
[1757035226987,0.0187,110790.0,110780.0,1.51921]
[1757035228883,0.0187,110790.0,110780.0,1.80989745]
[1757035229085,0.0187,110790.0,110780.0,1.88102962]
[1757035230085,0.0187,110790.0,110780.0,1.59034217]
[1757035231991,0.0187,110790.0,110780.0,1.88102962]
[1757035232988,0.042,110790.0,110780.0,1.22914217]
[1757035233297,0.042,110790.0,110780.0,1.22898217]
[1757035233596,0.2744144,110790.0,110780.0,1.46139657]
[1757035234795,0.2744144,110790.0,110780.0,0.40214217]
[1757035234991,0.2744144,110790.0,110780.0,1.46131657]
[1757035236291,0.2744144,110790.0,110780.0,0.63455657]
[1757035236597,0.2744144,110790.0,110780.0,0.82668]
[1757035236598,0.5244144,110790.0,110780.0,0.82668]
[1757035236786,0.5244144,110790.0,110780.0,0.34]
[1757035236787,0.8852144,110790.0,110780.0,0.34]
[1757035236993,0.8852144,110790.0,110780.0,0.82668]
[1757035237292,1.1176288,110790.0,110770.0,0.0848]
[1757035237490,0.8626288,110780.0,110770.0,0.4448]
[1757035237691,0.8626288,110780.0,110770.0,1.27252]
[1757035238987,0.8646288,110780.0,110770.0,1.27252]
[1757035239187,0.8656288,110780.0,110770.0,1.27252]
[1757035239385,0.8656288,110780.0,110770.0,1.18764]
[1757035244395,0.4008,110780.0,110770.0,1.18764]
[1757035244700,0.003,110780.0,110770.0,2.0308544]
[1757035245500,0.003,110780.0,110770.0,1.43844]
[1757035245698,0.003,110780.0,110770.0,2.0008544]
[1757035249301,0.0168,110780.0,110770.0,2.0008544]
[1757035250201,0.40039,110780.0,110770.0,0.4024]
[1757035250499,0.6328044,110780.0,110770.0,1.6820544]
[1757035251397,0.6328044,110780.0,110770.0,0.8548144]
[1757035251589,0.6328044,110780.0,110770.0,1.22944]
[1757035251794,0.6328044,110780.0,110770.0,1.4618544]
[1757035251995,0.40039,110780.0,110770.0,1.4618544]
[1757035252292,0.6328044,110780.0,110770.0,1.4618544]
[1757035252804,0.2720044,110780.0,110770.0,1.4618544]
[1757035253401,0.6328044,110780.0,110770.0,1.4618544]
[1757035253595,0.8652188,110780.0,110770.0,0.86956]
[1757035253795,0.03959,110780.0,110770.0,1.18956]
[1757035253999,0.5044188,110780.0,110770.0,1.18956]
[1757035254201,0.8652188,110780.0,110770.0,1.18956]
[1757035254392,0.40039,110780.0,110770.0,1.4219744]
[1757035254598,0.6100144,110780.0,110770.0,1.4219744]
[1757035255103,0.003,110780.0,110770.0,1.7827744]
[1757035260409,0.0168,110780.0,110770.0,0.9556144]
[1757035260604,0.003,110780.0,110770.0,1.8739653]
[1757035260809,0.003,110780.0,110770.0,2.3563797]
[1757035261196,0.003,110780.0,110770.0,2.1063797]
[1757035261602,0.003,110780.0,110770.0,1.87391154]
[1757035262312,0.003,110780.0,110770.0,1.98740163]
[1757035263413,0.003,110780.0,110770.0,1.6415509]
[1757035263612,0.003,110780.0,110770.0,1.87391154]
[1757035266114,0.003,110780.0,110770.0,1.95855154]
[1757035266913,0.003,110780.0,110770.0,1.7261909]
[1757035267216,0.003,110780.0,110770.0,1.95855154]
[1757035269124,0.0001,110790.0,110780.0,0.0226]
[1757035269311,0.0001,110800.0,110780.0,1.08601774]
[1757035269513,0.0001,110800.0,110790.0,1.20612]
[1757035269816,0.3746,110810.0,110790.0,1.79848064]
[1757035271712,0.3766,110810.0,110790.0,1.79848064]
[1757035272525,0.3786,110810.0,110790.0,1.79848064]
[1757035273324,0.3786,110810.0,110790.0,1.80768038]
[1757035274126,0.04059,110810.0,110800.0,0.3784]
[1757035274422,0.04049,110810.0,110800.0,0.3276]
[1757035274720,0.04049,110810.0,110800.0,0.0176]
[1757035275023,0.04049,110810.0,110800.0,0.97076064]
[1757035275024,0.0177,110810.0,110800.0,0.97076064]
[1757035275322,0.0377,110810.0,110800.0,0.97076064]
[1757035275524,0.0417,110810.0,110800.0,0.97076064]
[1757035275924,0.0417,110810.0,110800.0,0.7384]
[1757035276125,0.0417,110810.0,110800.0,0.97076064]
[1757035276326,0.0397,110810.0,110800.0,0.97076064]
[1757035276526,0.0437,110810.0,110800.0,0.97076064]
[1757035277927,0.0437,110810.0,110800.0,1.43752064]
[1757035278126,0.0437,110810.0,110800.0,1.79832064]
[1757035279827,0.0437,110810.0,110800.0,0.3776]
[1757035280029,0.0437,110810.0,110800.0,1.17508]
[1757035280329,0.27606064,110810.0,110800.0,1.17508]
[1757035281934,0.0437,110810.0,110800.0,1.17508]
[1757035282319,0.27606064,110810.0,110800.0,1.17508]
[1757035282729,0.0437,110810.0,110800.0,1.53588]
[1757035283428,0.007,110810.0,110800.0,1.76824064]
[1757035284632,0.0001,110820.0,110810.0,0.0966351]
[1757035284836,0.0001,110830.0,110820.0,0.0966269]
[1757035285130,0.5139,110840.0,110820.0,1.77660064]
[1757035285437,0.5359,110840.0,110830.0,0.59956064]
[1757035285637,0.5358,110840.0,110830.0,0.7172]
[1757035285934,0.5358,110840.0,110830.0,1.27484]
[1757035286528,0.5358,110840.0,110830.0,0.4472]
[1757035286735,0.77616064,110840.0,110830.0,0.91644]
[1757035286936,0.77616064,110840.0,110830.0,0.0864]
[1757035287124,1.38696064,110840.0,110830.0,0.91688]
[1757035287328,1.38696064,110840.0,110830.0,0.91048]
[1757035287834,1.1546,110840.0,110830.0,0.91688]
[1757035288038,1.38696064,110840.0,110830.0,0.91688]
[1757035289836,1.1546,110840.0,110830.0,0.91688]
[1757035290140,0.9046,110840.0,110830.0,0.91688]
[1757035291529,0.5218,110840.0,110830.0,1.77004064]
[1757035292040,0.5218,110840.0,110830.0,1.46004064]
[1757035292233,0.508,110840.0,110830.0,1.79004064]
[1757035293235,0.504,110840.0,110830.0,2.13934238]
[1757035294741,0.501,110840.0,110830.0,2.13934238]
[1757035295441,0.497,110840.0,110830.0,2.14034238]
[1757035295843,0.497,110840.0,110830.0,2.05012378]
[1757035296341,0.497,110840.0,110830.0,2.05036378]
[1757035296743,0.497,110840.0,110830.0,1.21964378]
[1757035296933,0.497,110840.0,110830.0,2.05044378]
[1757035297335,0.497,110840.0,110830.0,2.05032378]
[1757035297737,0.497,110840.0,110830.0,1.21964378]
[1757035297937,0.497,110840.0,110830.0,2.14046228]
[1757035298841,0.497,110840.0,110830.0,2.22526228]
[1757035300141,0.497,110840.0,110830.0,2.13504378]
[1757035300342,0.497,110840.0,110830.0,2.22526228]
[1757035301042,0.497,110840.0,110830.0,2.13504378]
[1757035301446,0.497,110840.0,110830.0,1.30444378]
[1757035301645,0.497,110840.0,110830.0,2.13480378]
[1757035301948,0.497,110840.0,110830.0,1.05444378]
[1757035302146,0.50986,110840.0,110830.0,1.88480378]
[1757035302641,0.50986,110840.0,110830.0,1.65244314]
[1757035302848,0.53186,110840.0,110830.0,1.87560064]
[1757035303350,0.50986,110840.0,110830.0,1.88469194]
[1757035303539,0.497,110840.0,110830.0,1.88469194]
[1757035303740,0.497,110840.0,110830.0,1.87560064]
[1757035304040,0.50986,110840.0,110830.0,1.87560064]
[1757035304643,0.50986,110840.0,110830.0,1.79080064]
[1757035305949,0.50986,110840.0,110830.0,1.79060064]
[1757035306445,0.50986,110840.0,110830.0,0.96056064]
[1757035306747,0.50986,110840.0,110830.0,1.79072064]
[1757035308050,0.50986,110840.0,110830.0,1.79958769]
[1757035308546,0.50986,110840.0,110830.0,1.79072064]
[1757035311055,0.50986,110840.0,110830.0,1.79985496]
[1757035316060,0.53259,110840.0,110830.0,1.78928064]
[1757035317157,0.53259,110840.0,110830.0,0.96056064]
[1757035317363,0.53259,110840.0,110830.0,1.19604]
[1757035318971,0.53259,110840.0,110830.0,1.78920064]
[1757035319174,0.53259,110840.0,110830.0,1.55684]
[1757035319472,0.53259,110840.0,110830.0,1.78920064]
[1757035323472,0.53259,110840.0,110830.0,1.78900665]
[1757035325077,0.53259,110840.0,110830.0,1.55684]
[1757035325277,0.53259,110840.0,110830.0,1.78900665]
[1757035326966,0.497,110840.0,110830.0,2.3613907]
[1757035327473,0.497,110840.0,110830.0,1.5327507]
[1757035327676,0.497,110840.0,110830.0,2.3615907]
[1757035328378,0.497,110840.0,110830.0,2.4463907]
[1757035330074,0.497,110840.0,110830.0,2.3561733]
[1757035330275,0.497,110840.0,110830.0,2.4463907]
[1757035330781,0.497,110840.0,110830.0,1.6175507]
[1757035331383,0.497,110840.0,110830.0,2.4461907]
[1757035334183,0.497,110840.0,110830.0,2.55968079]
[1757035336577,0.497,110840.0,110830.0,2.55916079]
[1757035338185,0.497,110840.0,110830.0,2.4456707]
[1757035338385,0.497,110840.0,110830.0,1.6175507]
[1757035338576,0.497,110840.0,110830.0,2.4454307]
[1757035342489,0.496,110840.0,110830.0,2.4454307]
[1757035342988,0.496,110840.0,110830.0,2.4448307]
[1757035343888,0.496,110840.0,110830.0,1.6175507]
[1757035344192,0.496,110840.0,110830.0,2.4446707]
[1757035344486,0.7591,110840.0,110830.0,1.04516665]
[1757035344687,0.7591,110840.0,110830.0,1.87228665]
[1757035345589,0.7591,110840.0,110830.0,1.13538455]
[1757035345789,0.7591,110840.0,110830.0,1.96234455]
[1757035346182,0.7591,110840.0,110830.0,1.87754455]
[1757035348995,0.496,110840.0,110830.0,2.1097112]
[1757035353400,0.496,110840.0,110830.0,2.22332976]
[1757035354601,0.496,110840.0,110830.0,2.22334448]
[1757035354797,0.496,110840.0,110830.0,2.81573533]
[1757035355104,0.496,110840.0,110830.0,2.4699354]
[1757035355492,0.496,110840.0,110830.0,2.76690205]
[1757035355493,0.493,110840.0,110830.0,2.76690205]
[1757035355698,0.493,110840.0,110830.0,3.34690205]
[1757035355898,0.493,110840.0,110830.0,3.50950835]
[1757035357197,0.493,110840.0,110830.0,3.51050835]
[1757035358503,0.493,110840.0,110830.0,3.51150835]
[1757035360103,0.0001,110850.0,110840.0,0.0902099]
[1757035360302,0.0001,110860.0,110850.0,0.0902021]
[1757035360502,0.0001,110870.0,110850.0,2.0920154]
[1757035360702,0.0001,110870.0,110860.0,0.8251333]
[1757035360999,0.0131,110870.0,110860.0,0.7108]
[1757035361204,0.03571,110870.0,110860.0,1.1751333]
[1757035362098,0.03771,110870.0,110860.0,1.1751333]
[1757035362407,0.03971,110870.0,110860.0,1.1751333]
[1757035363406,0.03971,110870.0,110860.0,1.84118197]
[1757035363601,0.27187665,110870.0,110860.0,1.84118197]
[1757035363807,0.27187665,110870.0,110860.0,1.84114197]
[1757035365102,0.52187665,110870.0,110860.0,1.01450197]
[1757035365407,0.28971,110870.0,110860.0,1.84114197]
[1757035365607,0.52187665,110870.0,110860.0,1.84114197]
[1757035366009,0.28971,110870.0,110860.0,1.84114197]
[1757035366309,0.28971,110870.0,110860.0,1.60897532]
[1757035366508,0.52187665,110870.0,110860.0,1.84114197]
[1757035367110,0.004,110870.0,110860.0,2.16350302]
[1757035367307,0.004,110870.0,110860.0,2.41350302]
[1757035367513,0.004,110870.0,110860.0,2.52702723]
[1757035368311,0.004,110870.0,110860.0,4.90279367]
[1757035368506,0.002,110870.0,110860.0,4.90379367]
[1757035368706,0.0001,110880.0,110870.0,0.0901863]
[1757035368908,0.0001,110890.0,110880.0,0.0901781]
[1757035369206,0.0132,110900.0,110890.0,0.09017]
[1757035369406,0.0131,110900.0,110890.0,1.02313665]
[1757035371111,0.24511665,110910.0,110890.0,1.02313665]
[1757035371313,0.03418,110910.0,110900.0,1.05876665]
[1757035371512,0.03418,110910.0,110900.0,1.38876665]
[1757035371513,0.03408,110910.0,110900.0,1.38876665]
[1757035371713,0.01285,110910.0,110900.0,1.6075621]
[1757035371900,0.01285,110910.0,110900.0,1.83972875]
[1757035372305,0.01485,110910.0,110900.0,2.0718954]
[1757035372517,0.004,110910.0,110900.0,2.0718954]
[1757035375418,0.27024665,110910.0,110900.0,0.92296665]
[1757035375602,0.27024665,110910.0,110900.0,1.74944665]
[1757035375805,0.52024665,110910.0,110900.0,1.51728]
[1757035376416,0.52024665,110910.0,110900.0,0.6908]
[1757035376606,0.52024665,110910.0,110900.0,1.51724]
[1757035376808,0.52024665,110910.0,110900.0,0.6908]
[1757035377117,0.28708,110910.0,110900.0,1.51724]
[1757035377317,0.51924665,110910.0,110900.0,1.51724]
[1757035377518,0.28708,110910.0,110900.0,1.51724]
[1757035377712,0.51924665,110910.0,110900.0,1.51724]
[1757035377919,0.51824665,110910.0,110900.0,1.51724]
[1757035378510,0.51824665,110910.0,110900.0,1.74940665]
[1757035378716,0.51824665,110910.0,110900.0,1.51724]
[1757035378913,0.51824665,110910.0,110900.0,1.74940665]
[1757035380814,0.51824665,110910.0,110900.0,1.83956915]
[1757035381010,0.01485,110910.0,110900.0,1.83956915]
[1757035381221,0.01485,110910.0,110900.0,2.0717358]
[1757035381621,0.01485,110910.0,110900.0,1.83956915]
[1757035382522,0.01485,110910.0,110900.0,1.5188]
[1757035382815,0.01485,110910.0,110900.0,1.75096665]
[1757035383026,0.002,110910.0,110900.0,2.0732958]
[1757035383522,0.002,110910.0,110900.0,1.84081358]
[1757035384123,0.01485,110910.0,110900.0,1.84081358]
[1757035388815,0.002,110910.0,110900.0,1.84081358]
[1757035389923,0.01485,110910.0,110900.0,1.84081358]
[1757035391124,0.002,110910.0,110900.0,1.84081358]
[1757035391626,0.002,110910.0,110900.0,2.18098084]
[1757035391825,0.002,110910.0,110900.0,2.41283192]
[1757035392928,0.001,110910.0,110900.0,2.41283192]
[1757035393123,0.001,110910.0,110900.0,2.18098084]
[1757035393424,0.001,110910.0,110900.0,2.41283192]
[1757035393626,0.001,110910.0,110900.0,2.18098084]
[1757035393828,0.001,110910.0,110900.0,2.41283192]
[1757035394429,0.001,110910.0,110900.0,1.35298084]
[1757035394822,0.001,110910.0,110900.0,2.18094084]
[1757035395024,0.0001,110920.0,110900.0,2.18094084]
[1757035395225,0.0001,110920.0,110910.0,0.68280588]
[1757035395424,0.03418,110930.0,110910.0,1.01280588]
[1757035395635,0.03418,110930.0,110920.0,1.42049108]
[1757035395822,0.03408,110930.0,110920.0,1.82329621]
[1757035396429,0.54063155,110930.0,110920.0,1.23064513]
[1757035396832,0.90143114,110930.0,110920.0,1.15776]
[1757035397030,0.90543114,110930.0,110920.0,1.15776]
[1757035398426,0.90543114,110930.0,110920.0,0.33]
[1757035398626,0.90543114,110930.0,110920.0,0.37]
[1757035398827,0.90543114,110930.0,110920.0,1.14788]
[1757035399833,0.90543114,110930.0,110920.0,0.03]
[1757035400028,0.90543114,110930.0,110920.0,0.32]
[1757035401638,0.03553,110920.0,110910.0,0.8278]
[1757035401839,0.01348,110900.0,110890.0,0.69150058]
[1757035402029,0.03553,110900.0,110890.0,1.55926058]
[1757035402634,0.26738108,110900.0,110890.0,0.73150058]
[1757035402829,0.26738108,110900.0,110890.0,1.19842058]
[1757035403139,0.26738108,110900.0,110890.0,1.20042058]
[1757035403637,0.26738108,110900.0,110890.0,0.37370058]
[1757035403834,0.62818108,110900.0,110890.0,1.18072]
[1757035404042,0.87818108,110900.0,110890.0,1.18072]
[1757035404239,0.87818108,110900.0,110890.0,0.353]
[1757035404426,0.87818108,110900.0,110890.0,1.18064]
[1757035404630,0.87818108,110900.0,110890.0,0.353]
[1757035405044,0.90288869,110900.0,110890.0,0.123]
[1757035405444,0.91180792,110900.0,110890.0,0.123]
[1757035405751,0.91180792,110900.0,110890.0,0.081]
[1757035406453,0.98338241,110900.0,110890.0,0.081]
[1757035406654,0.03553,110880.0,110870.0,0.87171816]
[1757035406858,0.62818108,110880.0,110870.0,0.42367816]
[1757035407054,0.62818108,110880.0,110870.0,1.25167816]
[1757035407354,0.62818108,110880.0,110870.0,1.25159816]
[1757035408755,0.62818108,110880.0,110870.0,0.42367816]
[1757035408957,0.62818108,110880.0,110870.0,1.25251816]
[1757035409955,0.62918108,110880.0,110870.0,1.25251816]
[1757035410365,0.62918108,110880.0,110870.0,0.42367816]
[1757035410551,0.62918108,110880.0,110870.0,1.25247816]
[1757035410859,0.39733,110880.0,110870.0,1.25247816]
[1757035411054,0.62918108,110880.0,110870.0,1.25247816]
[1757035413365,0.26838108,110880.0,110870.0,0.42367816]
[1757035413661,0.26838108,110880.0,110870.0,1.25287816]
[1757035413956,0.26838108,110880.0,110870.0,0.42367816]
[1757035414259,0.26838108,110880.0,110870.0,1.25279816]
[1757035416955,0.26838108,110880.0,110870.0,0.42367816]
[1757035417153,0.26838108,110880.0,110870.0,1.25247816]
[1757035417349,0.62918108,110880.0,110870.0,1.25247816]
[1757035419565,0.39733,110880.0,110870.0,1.25247816]
[1757035419859,0.001,110880.0,110870.0,2.19602644]
[1757035420052,0.001,110880.0,110870.0,2.10583924]
[1757035420864,0.03553,110880.0,110870.0,2.10783924]
[1757035421065,0.03553,110880.0,110870.0,1.26199816]
[1757035421066,0.26738108,110880.0,110870.0,1.26199816]
[1757035421367,0.26738108,110880.0,110870.0,1.62279816]
[1757035421556,0.26738108,110880.0,110870.0,1.62379816]
[1757035422366,0.26738108,110880.0,110870.0,0.78647816]
[1757035422575,0.26738108,110880.0,110870.0,1.62355816]
[1757035423362,0.02205,110880.0,110870.0,1.63426816]
[1757035423667,0.02205,110880.0,110870.0,1.63470816]
[1757035425264,0.03482,110880.0,110870.0,1.63470816]
[1757035426365,0.02205,110880.0,110870.0,1.63470816]
[1757035429867,0.03482,110880.0,110870.0,1.63470816]
[1757035431767,0.03482,110880.0,110870.0,1.63362816]
[1757035433274,0.02236,110880.0,110870.0,1.63362816]
[1757035434069,0.02236,110880.0,110870.0,1.62291816]
[1757035434271,0.03513,110880.0,110870.0,1.63362816]
[1757035435174,0.02236,110880.0,110870.0,1.63362816]
[1757035435375,0.24543108,110890.0,110870.0,1.72381556]
[1757035435565,0.01358,110890.0,110870.0,1.72381556]
[1757035435767,0.02236,110880.0,110870.0,1.72381556]
[1757035435970,0.02236,110880.0,110870.0,1.63362816]
[1757035436273,0.03513,110880.0,110870.0,1.62291816]
[1757035437574,0.26698108,110880.0,110870.0,1.62291816]
[1757035438575,0.03513,110880.0,110870.0,1.62291816]
[1757035438767,0.26698108,110880.0,110870.0,1.62291816]
[1757035440875,0.26698108,110880.0,110870.0,1.63362816]
[1757035441383,0.26698108,110880.0,110870.0,1.62331816]
[1757035442378,0.26698108,110880.0,110870.0,1.71350566]
[1757035443371,0.26698108,110880.0,110870.0,1.72421566]
[1757035443568,0.0001,110890.0,110880.0,0.0901792]
[1757035443773,0.02246,110900.0,110890.0,0.1257511]
[1757035443976,0.25437637,110900.0,110890.0,1.86404747]
[1757035444182,0.25437637,110900.0,110890.0,1.77387637]
[1757035444382,0.26714637,110900.0,110890.0,1.54186]
[1757035444583,0.26714637,110900.0,110890.0,1.77387637]
[1757035444786,0.26714637,110900.0,110890.0,1.54186]
[1757035445080,0.26714637,110900.0,110890.0,1.52846]
[1757035445278,0.26714637,110900.0,110890.0,1.76047637]
[1757035446983,0.26814637,110900.0,110890.0,1.76047637]
[1757035448179,0.03613,110900.0,110890.0,1.76047637]
[1757035448483,0.26814637,110900.0,110890.0,1.76047637]
[1757035449390,0.26814637,110900.0,110890.0,1.52846]
[1757035449589,0.26814637,110900.0,110890.0,1.76047637]
[1757035449885,0.26714637,110900.0,110890.0,1.76047637]
[1757035450790,0.26714637,110900.0,110890.0,1.76147637]
[1757035452592,0.03513,110900.0,110890.0,1.77487637]
[1757035452789,0.26714637,110900.0,110890.0,1.77487637]
[1757035453993,0.26714637,110900.0,110890.0,1.76147637]
[1757035456292,0.03513,110900.0,110890.0,1.76147637]
[1757035456492,0.26714637,110900.0,110890.0,1.76147637]
[1757035457194,0.26714637,110900.0,110890.0,1.77453637]
[1757035457389,0.25437637,110900.0,110890.0,1.77453637]
[1757035457793,0.02236,110900.0,110890.0,1.77453637]
[1757035458190,0.25437637,110900.0,110890.0,1.77453637]
[1757035462591,0.01358,110910.0,110890.0,1.77453637]
[1757035462890,0.26821637,110910.0,110900.0,0.25396637]
[1757035463190,0.26811637,110910.0,110900.0,0.63396637]
[1757035463591,0.26811637,110910.0,110900.0,1.46772637]
[1757035464197,0.51811637,110910.0,110900.0,1.23571]
[1757035465494,0.2861,110910.0,110900.0,1.23571]
[1757035465696,0.51911637,110910.0,110900.0,1.23571]
[1757035465893,0.51911637,110910.0,110900.0,0.85523]
[1757035466103,0.51911637,110910.0,110900.0,1.19523]
[1757035468100,0.87991637,110910.0,110900.0,1.19523]
[1757035469192,1.34394911,110910.0,110900.0,0.34]
[1757035469399,0.03555,110880.0,110870.0,0.04318816]
[1757035469596,0.49958274,110880.0,110870.0,1.18354816]
[1757035470100,0.86038274,110880.0,110870.0,1.20475]
[1757035470600,0.86038274,110880.0,110870.0,1.20775]
[1757035470991,0.86038274,110880.0,110870.0,1.20975]
[1757035473102,0.86038274,110880.0,110870.0,1.20775]
[1757035473404,0.86038274,110880.0,110870.0,1.20575]
[1757035474998,0.86038274,110880.0,110870.0,1.20511]
[1757035486301,0.86038274,110880.0,110870.0,0.85387]
[1757035486509,1.09239911,110880.0,110870.0,0.141]
[1757035486709,1.34239911,110880.0,110870.0,0.001]
[1757035487999,1.34439911,110880.0,110850.0,0.50907083]
[1757035488312,0.86067274,110860.0,110850.0,0.88127083]
[1757035488506,0.39664,110860.0,110850.0,0.3722]
[1757035488712,0.86067274,110860.0,110850.0,1.20268]
[1757035489499,0.01359,110840.0,110830.0,2.19757427]
[1757035489700,0.47762274,110840.0,110830.0,3.03709427]
[1757035490299,0.47762274,110840.0,110830.0,2.96405216]
[1757035490605,0.01359,110840.0,110830.0,1.22117216]
[1757035491019,0.47762274,110840.0,110830.0,1.22117216]
[1757035491510,0.47762274,110840.0,110830.0,1.22417216]
[1757035491912,0.47762274,110840.0,110830.0,1.22617216]
[1757035495215,0.47762274,110840.0,110830.0,1.58697216]
[1757035495717,0.47762274,110840.0,110830.0,1.22617216]
[1757035496612,0.39674,110850.0,110840.0,0.0222]
[1757035496917,0.25436637,110860.0,110850.0,0.03298]
[1757035497114,0.25426637,110860.0,110850.0,1.89695997]
[1757035497417,0.25426637,110860.0,110850.0,1.80675637]
[1757035497617,0.48628274,110860.0,110850.0,1.57474]
[1757035497818,0.25426637,110860.0,110850.0,1.57474]
[1757035498019,0.26785637,110860.0,110850.0,1.5749]
[1757035498219,0.26785637,110860.0,110850.0,1.5759]
[1757035499021,0.49987274,110860.0,110850.0,0.384]
[1757035499206,0.86067274,110860.0,110850.0,0.0232]
[1757035499412,1.11067274,110860.0,110850.0,0.001]
[1757035499612,1.34268911,110860.0,110850.0,0.001]
[1757035500209,1.11067274,110860.0,110850.0,0.001]
[1757035500415,1.34268911,110860.0,110850.0,0.001]
[1757035500614,2.17360911,110860.0,110850.0,0.001]
[1757035501419,1.92360911,110860.0,110850.0,0.001]
[1757035502121,2.17360911,110860.0,110850.0,0.001]
[1757035502516,1.94135274,110860.0,110850.0,0.001]
[1757035503520,0.86067274,110860.0,110850.0,0.001]
[1757035503816,0.26785637,110860.0,110850.0,0.97601637]
[1757035504023,0.23201637,110860.0,110850.0,1.23899637]
[1757035504230,0.23201637,110860.0,110850.0,1.70943637]
[1757035504516,0.23201637,110860.0,110850.0,1.47742]
[1757035505310,0.01369,110870.0,110850.0,2.16044007]
[1757035505515,0.26800845,110870.0,110860.0,0.03291]
[1757035505817,0.26790845,110870.0,110860.0,0.39291]